fUSD/lending_fUSD_20251027
["ID","MTS","AMOUNT","RATE_DAILY","PERIOD"]
[392490351,1761557920092,-151.3,0.000496,30]
[392490352,1761557920121,-1510.0,0.000497,120]
[392490353,1761557920267,-1510.0,0.000497,120]
[392490354,1761557920296,-1537.0,0.000497,120]
[392490355,1761557920324,-2000.0,0.0004975,56]
[392490356,1761557920356,-2000.0,0.0004983,63]
[392490357,1761557920388,-2000.0,0.0004986,59]
[392490358,1761557920416,-3506.90493059,0.000499,120]
[392490359,1761557920443,-1000.0,0.00049999,120]
[392490360,1761557920474,-12754.44193123,0.0005,44]
[392490361,1761557920501,-1000.0,0.0005,120]
[392490362,1761557920528,-469467.19239626,0.0005,120]
[392490363,1761557920556,-500.0,0.0005,120]
[392490364,1761557920584,-5966.92095817,0.0005,120]
[392490365,1761557920613,-1219242.60661602,0.0005,120]
[392490366,1761557920641,-870.86759265,0.0005,120]
[392490367,1761557920669,-990.46802114,0.0005,120]
[392490368,1761557920696,-1079.5938027,0.0005,120]
[392490369,1761557920724,-4166.29221791,0.0005,120]
[392490370,1761557920752,-6014.93279198,0.0005,60]
[392490371,1761557920780,-20000.0,0.0005,120]
[392490372,1761557920808,-380.0,0.0005,120]
[392490373,1761557920836,-621.0,0.0005,120]
[392490374,1761557920864,-63938.0,0.0005,120]
[392490375,1761557920893,-25000.0,0.0005,120]
[392490376,1761557920922,-21958.7940709,0.0005,120]
[392490377,1761557920952,-945.0,0.0005,30]
[392490378,1761557920982,-200.0,0.0005,120]
[392490379,1761557921012,-26578.48,0.0005,120]
[392490380,1761557921041,-307.60447995,0.0005,120]
[392490381,1761557921071,-2500.0,0.0005,30]
[392490382,1761557921102,-282.20775894,0.0005,120]
[392490383,1761557921130,-1345.91534849,0.0005,120]
[392490384,1761557921158,-224.93958955,0.0005,120]
[392490385,1761557921186,-165.00461466,0.0005,120]
[392490386,1761557921214,-500.0,0.0005,30]
[392490387,1761557921244,-2133.27737795,0.0005,120]
[392490388,1761557921274,-475.92011651,0.0005,120]
[392490389,1761557921309,-151.0,0.0005,120]
[392490390,1761557921340,-151.0,0.0005,120]
[392490391,1761557921372,-151.0,0.0005,120]
[392490392,1761557921400,-238.390222,0.0005,120]
[392490393,1761557921429,-5315.7,0.0005,120]
[392490394,1761557921458,-150.0,0.0005,120]
[392490395,1761557921487,-151.0,0.0005,120]
[392490396,1761557921515,-600.0,0.0005006,34]
[392490397,1761557921543,-527.21,0.000504,30]
[392490398,1761557921571,-332.6,0.00050424,120]
[392490399,1761557921599,-185.59,0.000505,120]
[392490400,1761557921628,-54961.43351769,0.0005058,120]
[392490401,1761557921656,-151.0,0.000506,120]
[392490402,1761557921684,-606.0,0.00050609,120]
[392490403,1761557921713,-1313.0,0.00050609,120]
[392490404,1761557921741,-1270.0,0.00050609,120]
[392490405,1761557921771,-558.0,0.00050609,120]
[392490406,1761557921799,-1186.0,0.00050609,120]
[392490407,1761557921828,-904.0,0.00050609,120]
[392490408,1761557921857,-500.0,0.00050684,120]
[392490409,1761557921885,-4174.52488771,0.00051,120]
[392490410,1761557921915,-5000.0,0.00051,120]
[392490411,1761557921944,-2055.81921826,0.00051,120]
[392490412,1761557921974,-356.72394022,0.00051,120]
[392490413,1761557922005,-1930.0,0.00051,120]
[392490414,1761557922034,-2682.0,0.00051,120]
[392490415,1761557922064,-1760.0,0.00051,120]
[392490416,1761557922093,-252.36254435,0.00051,120]
[392490417,1761557922123,-500.0,0.00051,120]
[392490418,1761557922154,-1576.71,0.000511,30]
[392490419,1761557922185,-3416.0,0.00051109,120]
[392490420,1761557922215,-573.0,0.00051109,120]
[392490421,1761557922244,-820.0,0.00051109,120]
[392490422,1761557922272,-2055.0,0.00051109,120]
[392490423,1761557922303,-1600.0,0.00051214,120]
[392490424,1761557922335,-150.95,0.0005141,120]
[392490425,1761557922364,-151.3,0.000515,30]
[392490426,1761557922393,-66734.64235239,0.00051599,120]
[392490427,1761557922422,-261.408912,0.00051599,120]
[392490428,1761557922452,-209.414135,0.00051599,120]
[392490429,1761557922483,-209.414135,0.00051599,120]
[392490430,1761557922513,-209.414135,0.00051599,120]
[392490431,1761557922544,-209.414135,0.00051599,120]
[392490432,1761557922574,-151.0,0.00051599,30]
[392490433,1761557922603,-160.0,0.000516,120]
[392490434,1761557922632,-2000.0,0.0005169,63]
[392490435,1761557922661,-150.0,0.00051755,30]
[392490436,1761557922690,-12626.43610697,0.00052,120]
[392490437,1761557922829,-7050.86955133,0.00052,120]
[392490438,1761557922862,-5000.0,0.00052,120]
[392490439,1761557922896,-25000.0,0.00052,120]
[392490440,1761557922928,-8750.97898773,0.00052,120]
[392490441,1761557922960,-5025.0,0.00052,120]
[392490442,1761557922991,-500.0,0.00052054,120]
[392490443,1761557923115,636.0,0.0004489,30]
[392490444,1761557923162,500.0,0.00043835,120]
[392490445,1761557923383,174.89305555,0.00052054,120]
[392490446,1761557923451,581.20871792,0.00043835,120]
[392490447,1761557924214,632.27300455,0.00052054,120]
[392490448,1761557924638,500.0,0.00043835,120]
[392490449,1761557925083,500.0,0.00044998,120]
[392490450,1761557927141,500.0,0.00044998,120]
[392490451,1761557927227,500.0,0.00043835,120]
[392490452,1761557929111,500.0,0.00043835,120]
[392490453,1761557929508,500.0,0.00043835,120]
[392490454,1761557932516,500.0,0.00043835,120]
[392490455,1761557948177,258.622809,7.945e-05,2]
[392490456,1761557961341,1000.0,0.00037042,60]
[392490457,1761557974068,1000.0,0.00037042,60]
[392490459,1761558008875,205.95089584,0.00031248,120]
[392490460,1761558012578,1994.83,0.00018472,2]
[392490461,1761558012788,1994.83,0.00019444,2]
[392490462,1761558022894,-554.63851341,0.00020417,2]
[392490463,1761558026069,-162.91502464,0.00020417,2]
[392490464,1761558028452,-311.57892345,0.00020417,2]
[392490465,1761558030080,-183.95421483,0.00020417,2]
[392490466,1761558031946,-232.39472922,0.00020417,2]
[392490467,1761558035433,-359.80456026,0.00020417,2]
[392490468,1761558053091,-189.54403419,0.00020417,2]
[392490469,1761558053118,-179.40349391,0.00021389,2]
[392490470,1761558059219,-368.37364967,0.00021389,2]
[392490471,1761558063130,-217.40433155,0.00021389,2]
[392490472,1761558066067,-305.03942694,0.00021389,2]
[392490473,1761558070492,-302.0,0.00021389,2]
[392490474,1761558071364,3000.0,0.00037042,50]
[392490475,1761558071685,3000.0,0.00037042,50]
[392490476,1761558072053,3000.0,0.00037042,50]
[392490477,1761558072365,3000.0,0.00037042,50]
[392490478,1761558073301,3000.0,0.00037042,50]
[392490479,1761558074221,-302.0,0.00021389,2]
[392490480,1761558076876,-315.86857925,0.00021389,2]
[392490481,1761558078759,-4.74051868,0.00021389,2]
[392490482,1761558078783,-274.74370513,0.00022361,2]
[392490483,1761558081477,1862.0,0.00037042,50]
[392490484,1761558081738,-170.7534871,0.00022361,2]
[392490485,1761558085326,935.36690136,0.00037042,50]
[392490486,1761558085400,-358.11786165,0.00022361,2]
[392490487,1761558087209,3000.0,0.00037042,50]
[392490488,1761558087254,489.17963074,0.00037042,120]
[392490489,1761558087507,3000.0,0.00037042,50]
[392490490,1761558087856,3000.0,0.00037042,50]
[392490491,1761558088271,-183.00646124,0.00022361,2]
[392490492,1761558090343,-183.24934158,0.00022361,2]
[392490493,1761558092005,1000.0,0.00037042,60]
[392490494,1761558093212,-178.01578322,0.00022361,2]
[392490495,1761558094790,-185.57792309,0.00022361,2]
[392490496,1761558104733,1000.0,0.00037042,60]
[392490497,1761558112806,-175.03492136,0.00022361,2]
[392490498,1761558113596,1000.0,0.00037042,60]
[392490499,1761558114589,-177.74955,0.00022361,2]
[392490500,1761558126074,152.01724568,0.00024597,120]
[392490501,1761558127443,3000.0,0.00037042,120]
[392490502,1761558142267,-108.58096563,0.00022361,2]
[392490503,1761558142291,-171.45942248,0.00022483,2]
[392490504,1761558145134,-324.40757995,0.00022483,2]
[392490505,1761558147307,1000.0,0.00037042,60]
[392490506,1761558147991,-236.23731468,0.00022483,2]
[392490507,1761558150764,-223.13520462,0.00022483,2]
[392490508,1761558152867,-261.99,0.00022483,2]
[392490509,1761558156940,-286.16390216,0.00022483,2]
[392490510,1761558160036,1000.0,0.00037042,60]
[392490511,1761558160412,-204.70641875,0.00022483,2]
[392490512,1761558163151,-185.98484345,0.00022483,2]
[392490513,1761558166347,-280.14263595,0.00022483,2]
[392490514,1761558169738,-219.58888082,0.00022483,2]
[392490515,1761558171926,-194.84474966,0.00022483,2]
[392490516,1761558173612,-225.12483304,0.00022483,2]
[392490517,1761558177730,-300.0,0.00022483,2]
[392490518,1761558180890,-169.88528075,0.00022483,2]
[392490519,1761558183139,-270.06024962,0.00022483,2]
[392490520,1761558185500,1000.0,0.00037042,60]
[392490521,1761558186324,-158.44955857,0.00022483,2]
[392490522,1761558187601,747.411066,7.945e-05,2]
[392490523,1761558198613,1000.0,0.00037042,60]
[392490524,1761558202277,-270.45306813,0.00022483,2]
[392490525,1761558204486,-513.57935999,0.00022483,2]
[392490526,1761558206572,-368.19083182,0.00022483,2]
[392490527,1761558211341,1000.0,0.00037042,60]
[392490528,1761558236859,1000.0,0.00037171,60]
[392490529,1761558249902,198.2232325,0.00037171,120]
[392490530,1761558249934,1000.0,0.00037171,60]
[392490531,1761558256456,918.1771124,0.00037171,60]
[392490532,1761558262545,346.96951908,0.00037171,120]
[392490533,1761558274034,1609.8514695,0.00037171,50]
[392490534,1761558274910,2000.0,0.00037171,50]
[392490535,1761558275385,1000.0,0.00037171,60]
[392490536,1761558303155,183.0,0.00037171,50]
[392490537,1761558303190,957.82,0.00037171,50]
[392490538,1761558303221,700.26,0.00037171,50]
[392490539,1761558303355,205.00561465,0.00037171,120]
[392490540,1761558303386,200.78959591,0.00037171,120]
[392490541,1761558309022,2000.0,0.00037171,50]
[392490542,1761558352574,414.2,0.00031507,120]
[392490543,1761558404658,4.306125,0.00017,2]
[392490544,1761558404683,245.693875,0.00017,2]
[392490545,1761558490646,3000.0,0.00037171,120]
[392490546,1761558554260,-151.0,0.00022384,60]
[392490547,1761558554281,-17.1351406,0.00022434,2]
[392490548,1761558559170,-232.8648594,0.00022434,2]
[392490549,1761558559191,-2184.2875633,0.00022434,2]
[392490550,1761558559211,-253.37415181,0.00022464,2]
[392490551,1761558559232,-2500.0,0.00022484,2]
[392490552,1761558559251,-242.4823443,0.00022484,2]
[392490553,1761558559270,-195.0,0.00022484,2]
[392490554,1761558559289,-300.0,0.00022485,2]
[392490555,1761558559308,-150.0,0.00022487,2]
[392490556,1761558559332,-2500.0,0.00022488,2]
[392490557,1761558559352,-2500.0,0.00022488,2]
[392490558,1761558559372,-2500.0,0.00022488,2]
[392490559,1761558559392,-195.0,0.00022491,2]
[392490560,1761558559413,-300.0,0.00022492,2]
[392490561,1761558559435,-300.0,0.00022492,2]
[392490562,1761558559455,-300.0,0.00022492,2]
[392490563,1761558559475,-500.0,0.000225,2]
[392490564,1761558559502,-150.0,0.00022501,2]
[392490565,1761558559523,-173.93030662,0.00022503,2]
[392490566,1761558559542,-195.0,0.00022526,2]
[392490567,1761558559563,-899.0,0.00022602,2]
[392490568,1761558559583,-271.0,0.00022603,2]
[392490569,1761558559604,-1200.0,0.00022603,2]
[392490570,1761558559624,-300.0,0.00022603,2]
[392490571,1761558559646,-500.0,0.00023327,2]
[392490572,1761558559666,-153.01216799,0.00023327,2]
[392490573,1761558559686,-184.58707632,0.00023327,2]
[392490574,1761558559710,-414.43363048,0.00023327,2]
[392490575,1761558559733,-430.46605246,0.00023327,2]
[392490576,1761558559754,-932.0,0.00023328,2]
[392490577,1761558559775,-1441.94515841,0.00023333,2]
[392490578,1761558571093,-552.88484159,0.00023333,2]
[392490579,1761558571114,-503.21409487,0.00023633,2]
[392490580,1761558571135,-500.0,0.00023633,2]
[392490581,1761558571156,-500.0,0.00023633,2]
[392490582,1761558571176,-500.0,0.00023633,2]
[392490583,1761558571198,-500.0,0.00023713,2]
[392490584,1761558571219,-500.0,0.00023713,2]
[392490585,1761558571239,-500.0,0.00023713,2]
[392490586,1761558571259,-500.0,0.00023713,2]
[392490587,1761558571280,-500.0,0.00023713,2]
[392490588,1761558571300,-561.43571873,0.00023713,2]
[392490589,1761558571319,-500.0,0.00023771,2]
[392490590,1761558571338,-252.41531868,0.00023771,2]
[392490591,1761558571358,-500.0,0.00023771,2]
[392490592,1761558571378,-476.87708629,0.00023771,2]
[392490593,1761558571398,-503.10126105,0.00023771,2]
[392490594,1761558571418,-1000.0,0.00024181,2]
[392490595,1761558571439,-502.85292496,0.00024181,2]
[392490596,1761558571460,-500.0,0.00024181,2]
[392490597,1761558571484,-1008.46172367,0.0002426,2]
[392490598,1761558571505,-1000.0,0.0002426,2]
[392490599,1761558571524,-500.0,0.0002426,2]
[392490600,1761558571671,-1994.83,0.00024305,2]
[392490601,1761558571691,-173.93030662,0.0002453,2]
[392490602,1761558571711,-151.0,0.00024582,2]
[392490603,1761558571732,-151.0,0.00024582,2]
[392490604,1761558571751,-151.0,0.00024582,2]
[392490605,1761558571773,-151.0,0.00024582,2]
[392490606,1761558571796,-151.0,0.00024582,2]
[392490607,1761558571816,-151.0,0.00024582,2]
[392490608,1761558571836,-151.0,0.00024582,2]
[392490609,1761558571856,-151.0,0.00024582,2]
[392490610,1761558571877,-151.0,0.00024582,2]
[392490611,1761558571897,-151.0,0.00024582,2]
[392490612,1761558571917,-151.0,0.00024582,2]
[392490613,1761558571937,-151.0,0.00024582,2]
[392490614,1761558571956,-151.0,0.00024582,2]
[392490615,1761558571976,-151.0,0.00024582,2]
[392490616,1761558571995,-151.0,0.00024582,2]
[392490617,1761558572015,-151.0,0.00024582,2]
[392490618,1761558572035,-151.0,0.00024582,2]
[392490619,1761558572055,-151.0,0.00024582,2]
[392490620,1761558572077,-151.0,0.00024582,2]
[392490621,1761558572098,-151.0,0.00024582,2]
[392490622,1761558572118,-250.0,0.00024622,2]
[392490623,1761558572137,-5000.0,0.00024622,2]
[392490624,1761558572159,-1680.0,0.00024661,2]
[392490625,1761558572180,-195.0,0.00024731,2]
[392490626,1761558572200,-150.0,0.00024731,2]
[392490627,1761558572220,-300.0,0.00024731,2]
[392490628,1761558572239,-2500.0,0.00024731,2]
[392490629,1761558572258,-195.0,0.00024732,2]
[392490630,1761558572277,-193.0,0.00024732,2]
[392490631,1761558572299,-500.0,0.00024932,2]
[392490632,1761558572321,-1994.83,0.00025278,2]
[392490633,1761558572342,-1994.83,0.0002625,2]
[392490634,1761558572362,-173.93030662,0.00026557,2]
[392490635,1761558572384,-2274.0,0.00026907,2]
[392490636,1761558572406,-1994.83,0.00027222,2]
[392490637,1761558572426,-1994.83,0.00028194,2]
[392490638,1761558572445,-324.0,0.00028941,2]
[392490639,1761558572465,-150.0,0.00028951,2]
[392490640,1761558572490,-1994.83,0.00029167,2]
[392490641,1761558572511,-608.38,0.00029205,2]
[392490642,1761558572534,-1994.83,0.00030139,2]
[392490643,1761558572556,-1994.83,0.00031111,2]
[392490644,1761558572576,-3915.56993692,0.00031633,2]
[392490645,1761558574329,-5251.53006308,0.00031633,2]
[392490646,1761558574349,-1000.0,0.0003168,2]
[392490647,1761558574371,-1450.28368251,0.00032,120]
[392490648,1761558574393,-1994.83,0.00032083,2]
[392490649,1761558578556,641.37299806,0.00037168,55]
[392490651,1761558602376,300.0,0.00031507,120]
[392490652,1761558603186,151.0,0.00024582,2]
[392490653,1761558603893,151.0,0.00024582,2]
[392490654,1761558604553,151.0,0.00024582,2]
[392490655,1761558605193,151.0,0.00024582,2]
[392490656,1761558605967,151.0,0.00024582,2]
[392490657,1761558606618,151.0,0.00024582,2]
[392490658,1761558607421,151.0,0.00024582,2]
[392490659,1761558608109,151.0,0.00024582,2]
[392490660,1761558608762,151.0,0.00024582,2]
[392490661,1761558609425,151.0,0.00024582,2]
[392490662,1761558610071,151.0,0.00024582,2]
[392490663,1761558610720,151.0,0.00024582,2]
[392490664,1761558611379,151.0,0.00024582,2]
[392490665,1761558612033,293.97331786,0.00024582,2]
[392490666,1761558614092,248.0,0.00026601,120]
[392490667,1761558615296,248.0,0.00027931,120]
[392490668,1761558616671,248.0,0.00029328,120]
[392490669,1761558618129,248.0,0.00030794,120]
[392490670,1761558618676,437.72060351,0.00037168,50]
[392490671,1761558619130,220.0,0.00031537,2]
[392490672,1761558619541,248.0,0.00032334,120]
[392490673,1761558619769,220.0,0.00031537,2]
[392490674,1761558620422,189.04685243,0.00031537,2]
[392490675,1761558622487,1000.0,0.0003,120]
[392490676,1761558629041,3163.6614935,0.00027906,2]
[392490677,1761558629247,3163.6614935,0.0003157,2]
[392490678,1761558629272,2934.0,0.00018,2]
[392490697,1761558631953,-1000.0,0.000325,120]
[392490698,1761558631962,-1450.28368251,0.00033,120]
[392490699,1761558631973,-300.0,0.00033014,120]
[392490700,1761558631983,-195.0,0.00033014,120]
[392490701,1761558631993,-186.93704852,0.00033028,30]
[392490702,1761558632061,-13.06295148,0.00033028,30]
[392490703,1761558632071,-193.0,0.00033028,120]
[392490704,1761558632080,-300.0,0.00033028,120]
[392490705,1761558632089,-2500.0,0.00033028,120]
[392490706,1761558632099,-1994.83,0.00033055,2]
[392490707,1761558632109,-300.0,0.00033143,120]
[392490708,1761558632119,-300.0,0.00033143,120]
[392490709,1761558632128,-300.0,0.00033143,120]
[392490710,1761558632138,-195.0,0.00033143,120]
[392490711,1761558632147,-205.36915972,0.00033602,30]
[392490712,1761558632156,-193.0,0.00033602,120]
[392490713,1761558632166,-193.0,0.00033602,120]
[392490714,1761558632176,-300.0,0.00033602,120]
[392490715,1761558632186,-300.0,0.00033602,120]
[392490716,1761558632195,-300.0,0.00033602,120]
[392490717,1761558632205,-2500.0,0.00033602,120]
[392490718,1761558632215,-2500.0,0.00033602,120]
[392490719,1761558632225,-2500.0,0.00033602,120]
[392490720,1761558632235,-1450.28368251,0.000339,120]
[392490721,1761558632244,-248.0,0.00033951,120]
[392490722,1761558632253,-1994.83,0.00034028,2]
[392490723,1761558632263,-287.516,0.00034028,37]
[392490724,1761558632273,-500.0,0.0003445,2]
[392490725,1761558632282,-706.0,0.00034838,2]
[392490726,1761558632291,-150.0,0.00034886,2]
[392490727,1761558632306,-237.0,0.00034907,2]
[392490728,1761558632315,-1994.83,0.00035,2]
[392490729,1761558632325,-1450.28368251,0.00035,120]
[392490731,1761558632334,-1000.0,0.00035,120]
[392490733,1761558632343,-3163.6614935,0.00035233,2]
[392490735,1761558632353,-1000.0,0.0003564,2]
[392490737,1761558632362,-248.0,0.00035648,120]
[392490738,1761558632371,-1994.83,0.00035972,2]
[392490739,1761558632381,-1450.28368251,0.00036,120]
[392490740,1761558632390,-500.0,0.00036017,2]
[392490741,1761558632400,-200.0,0.000363,30]
[392490742,1761558632409,-193.0,0.000363,120]
[392490743,1761558632419,-300.0,0.000363,120]
[392490744,1761558632428,-250.0,0.000363,2]
[392490746,1761558632438,-2500.0,0.000363,120]
[392490748,1761558632448,-300.0,0.000363,120]
[392490750,1761558632457,-195.0,0.000363,120]
[392490752,1761558632467,-250.94370302,0.0003637,16]
[392490755,1761558632476,-2000.0,0.000367,2]
[392490757,1761558632485,-205.95089584,0.00036728,120]
[392490759,1761558632499,-212.11616596,0.00036728,120]
[392490761,1761558632508,-152.0,0.00036824,3]
[392490763,1761558632518,-247.131,0.00036888,7]
[392490765,1761558632526,-232.81767342,0.00036942,15]
[392490767,1761558632536,-500.0,0.00036942,15]
[392490769,1761558632545,-438.47867613,0.00036942,15]
[392490770,1761558632554,-500.0,0.00036942,15]
[392490771,1761558632563,-155.53739813,0.00036942,15]
[392490772,1761558632572,-163.00134645,0.00036942,15]
[392490773,1761558632581,-500.0,0.00036942,15]
[392490774,1761558632592,-500.0,0.00036942,15]
[392490775,1761558632601,-267.36368271,0.00036942,15]
[392490776,1761558632610,-500.0,0.00036942,15]
[392490777,1761558632619,-1994.83,0.00036944,2]
[392490778,1761558632629,-5460.76,0.00037067,2]
[392490779,1761558632638,-1357.23,0.00037067,2]
[392490780,1761558632647,-904.61,0.00037067,10]
[392490781,1761558632655,-150.99,0.00037067,2]
[392490782,1761558632664,-999.99,0.00037067,2]
[392490783,1761558632674,-1166.13,0.00037067,2]
[392490784,1761558632684,-1449.92,0.00037067,2]
[392490785,1761558632693,-540.05,0.00037067,2]
[392490786,1761558632703,-9999.99,0.00037067,2]
[392490787,1761558632712,-9999.99,0.00037067,2]
[392490788,1761558632722,-10251.76,0.00037168,30]
[392490789,1761558632731,-215.0,0.00037168,30]
[392490790,1761558632740,-15000.0,0.00037168,30]
[392490791,1761558632749,-150.0,0.00037168,2]
[392490792,1761558632759,-1000.0,0.00037168,30]
[392490793,1761558632769,-1000.0,0.00037168,30]
[392490794,1761558632779,-1000.0,0.00037168,30]
[392490795,1761558632789,-1000.0,0.00037168,30]
[392490796,1761558632799,-1000.0,0.00037168,30]
[392490797,1761558632808,-1000.0,0.00037168,30]
[392490798,1761558632817,-1000.0,0.00037168,30]
[392490799,1761558632826,-1000.0,0.00037168,30]
[392490800,1761558632836,-1000.0,0.00037168,30]
[392490801,1761558632846,-1000.0,0.00037168,30]
[392490802,1761558632856,-1000.0,0.00037168,30]
[392490803,1761558632865,-1000.0,0.00037168,30]
[392490804,1761558632876,-1000.0,0.00037168,30]
[392490805,1761558632886,-1000.0,0.00037168,30]
[392490806,1761558632896,-448.48384471,0.00037168,30]
[392490807,1761558632906,-1000.0,0.00037168,30]
[392490808,1761558632916,-1000.0,0.00037168,30]
[392490809,1761558632927,-953.52329051,0.00037168,30]
[392490810,1761558632942,-816.07871319,0.00037168,30]
[392490811,1761558632954,-1000.0,0.00037168,30]
[392490812,1761558632963,-200.0,0.00037168,30]
[392490813,1761558632975,-300.0,0.00037168,30]
[392490814,1761558632987,-150.0,0.00037168,30]
[392490815,1761558632997,-1000.0,0.00037168,30]
[392490816,1761558633007,-1000.0,0.00037168,30]
[392490817,1761558633018,-1000.0,0.00037168,30]
[392490818,1761558633028,-200.0,0.00037168,30]
[392490819,1761558633038,-203.95287301,0.00037168,2]
[392490820,1761558633049,-453.19,0.0003717,30]
[392490821,1761558633060,-601.487081,0.0003717,120]
[392490822,1761558633070,-1000.0,0.00037227,2]
[392490823,1761558633080,-4063.5368,0.00037327,2]
[392490824,1761558633090,-2138.5755,0.00037327,2]
[392490825,1761558633100,-6621.6284,0.00037327,2]
[392490826,1761558633109,-233.9129,0.00037327,2]
[392490827,1761558633119,-2500.0,0.00037327,2]
[392490828,1761558633129,-33610.84395344,0.00037427,2]
[392490829,1761558633141,-366.13195705,0.00037427,2]
[392490830,1761558633152,-292.42796134,0.00037427,2]
[392490831,1761558633164,-1035.14287689,0.00037427,2]
[392490832,1761558633180,-2483.29275936,0.00037427,2]
[392490835,1761558638039,-424.538785,0.00037167,15]
[392490836,1761558638055,-75.461215,0.00037167,15]
[392490837,1761558638064,-162.9723714,0.00037167,15]
[392490838,1761558638074,-306.93507329,0.00037167,15]
[392490839,1761558638083,-464.10094252,0.00037167,15]
[392490840,1761558638093,-500.0,0.00037167,15]
[392490841,1761558638103,-587.15457789,0.00037167,15]
[392490842,1761558638112,-2097.27648168,0.00037427,2]
[392490843,1761558638128,-2070.66,0.00037427,2]
[392490844,1761558638140,-442.9242,0.00037427,2]
[392490845,1761558639923,-20572.97822286,0.00037427,2]
[392490846,1761558639933,-248.0,0.00037431,120]
[392490847,1761558639943,-1380.86406,0.000375,120]
[392490848,1761558639952,-80.42808432,0.00037634,2]
[392490849,1761558639974,-473.93335833,0.00037634,2]
[392490850,1761558639986,-4347.70237203,0.00037634,2]
[392490851,1761558641022,-1.6e-07,0.00037634,2]
[392490852,1761558641034,-97.93618516,0.00037634,2]
[392490853,1761558641043,-150.95,0.00037712,2]
[392490854,1761558641052,-250.94370302,0.00037968,7]
[392490855,1761558641062,-1164.64120143,0.000381,33]
[392490856,1761558641071,-500.0,0.00038124,2]
[392490857,1761558641080,-500.0,0.00038124,2]
[392490858,1761558641089,-500.0,0.00038124,2]
[392490859,1761558641099,-220.0,0.00038384,2]
[392490860,1761558641108,-25541.13,0.00038417,2]
[392490861,1761558641117,-500.0,0.00038535,7]
[392490862,1761558641127,-501.46068794,0.0003858,5]
[392490863,1761558641136,-523.99533253,0.0003858,5]
[392490864,1761558641145,-500.0,0.0003858,5]
[392490865,1761558641154,-2224.1792,0.00038888,30]
[392490866,1761558641163,-3163.6614935,0.00038897,2]
[392490867,1761558641172,-6980.60485169,0.00039197,2]
[392490868,1761558641181,-248.0,0.00039302,120]
[392490869,1761558641191,-152.0,0.00039316,4]
[392490870,1761558641200,-7863.32,0.00039484,2]
[392490871,1761558641210,-168.0,0.00039522,7]
[392490872,1761558641219,-168.0,0.00039527,2]
[392490873,1761558641229,-1000.0,0.000396,2]
[392490874,1761558641238,-184.56526676,0.00039626,2]
[392490875,1761558641247,-874.1538604,0.00039716,2]
[392490876,1761558641256,-238.73502735,0.00039716,2]
[392490877,1761558641266,-500.0,0.00039726,15]
[392490878,1761558641276,-305.37119711,0.00039726,15]
[392490879,1761558641284,-500.0,0.00039726,15]
[392490880,1761558641293,-500.0,0.00039726,15]
[392490881,1761558641303,-248.65000836,0.00039778,5]
[392490882,1761558641311,-499.01910883,0.00039778,5]
[392490883,1761558641320,-500.3556956,0.00039778,2]
[392490884,1761558641330,-379.0,0.0003979,7]
[392490885,1761558641339,-177.34943631,0.00039808,5]
[392490886,1761558641348,-500.0,0.00039808,5]
[392490887,1761558641357,-166.9,0.00039914,2]
[392490888,1761558641365,-168.0,0.0003994,2]
[392490889,1761558641374,-525.83,0.0004,120]